fUSD/lending_fUSD_20260307
["ID","MTS","AMOUNT","RATE_DAILY","PERIOD"]
[407930904,1772922668692,-274.160956,0.00041096,120]
[407930905,1772922668702,-199.620115,0.00041096,120]
[407930906,1772922668712,-274.160956,0.00041096,120]
[407930907,1772922668722,-199.620115,0.00041096,120]
[407930908,1772922668732,-274.160956,0.00041096,120]
[407930909,1772922668741,-199.620115,0.00041096,120]
[407930910,1772922668751,-274.160956,0.00041096,120]
[407930911,1772922668763,-199.620115,0.00041096,120]
[407930912,1772922668772,-274.160956,0.00041096,120]
[407930913,1772922668782,-199.620115,0.00041096,120]
[407930914,1772922668793,-274.160956,0.00041096,120]
[407930915,1772922668803,-199.620115,0.00041096,120]
[407930916,1772922668814,-274.160956,0.00041096,120]
[407930917,1772922668824,-199.620115,0.00041096,120]
[407930918,1772922668835,-274.160956,0.00041096,120]
[407930919,1772922668846,-199.620115,0.00041096,120]
[407930920,1772922668856,-274.160956,0.00041096,120]
[407930921,1772922668867,-199.620115,0.00041096,120]
[407930922,1772922668878,-274.160956,0.00041096,120]
[407930923,1772922668888,-199.620115,0.00041096,120]
[407930924,1772922668898,-274.160956,0.00041096,120]
[407930925,1772922668908,-199.620115,0.00041096,120]
[407930926,1772922668918,-274.160956,0.00041096,120]
[407930927,1772922668927,-199.620123,0.00041096,120]
[407930928,1772922668938,-274.160956,0.00041096,120]
[407930929,1772922668950,-274.160956,0.00041096,120]
[407930930,1772922668961,-274.160956,0.00041096,120]
[407930931,1772922668972,-274.160956,0.00041096,120]
[407930932,1772922668983,-274.160956,0.00041096,120]
[407930933,1772922668995,-194.681517,0.00041096,120]
[407930934,1772922669006,-151.0,0.00041096,120]
[407930935,1772922669016,-153.542406,0.00041096,120]
[407930936,1772922669026,-151.0,0.00041096,120]
[407930937,1772922669036,-151.0,0.00041096,120]
[407930938,1772922669046,-151.0,0.00041096,120]
[407930939,1772922669056,-151.0,0.00041096,120]
[407930940,1772922669066,-251.43014,0.00041096,120]
[407930941,1772922669076,-151.0,0.00041096,30]
[407930942,1772922669088,-151.0,0.00041096,30]
[407930943,1772922669097,-151.0,0.00041096,30]
[407930944,1772922669108,-151.0,0.00041096,120]
[407930945,1772922669119,-154.414775,0.00041096,120]
[407930946,1772922669129,-151.0,0.00041096,120]
[407930947,1772922669138,-151.0,0.00041096,120]
[407930948,1772922669149,-151.0,0.00041096,120]
[407930949,1772922669159,-151.0,0.00041096,120]
[407930950,1772922669169,-151.0,0.00041096,120]
[407930951,1772922669178,-151.0,0.00041096,120]
[407930952,1772922669188,-872.096117,0.00041096,14]
[407930953,1772922669198,-151.0,0.00041096,120]
[407930954,1772922669208,-872.096117,0.00041096,14]
[407930955,1772922669218,-151.0,0.00041096,120]
[407930956,1772922669228,-872.096117,0.00041096,14]
[407930957,1772922669239,-151.0,0.00041096,120]
[407930958,1772922669250,-872.096117,0.00041096,14]
[407930959,1772922669266,-151.0,0.00041096,120]
[407930960,1772922669279,-872.096117,0.00041096,14]
[407930961,1772922669291,-872.096117,0.00041096,14]
[407930962,1772922669302,-872.096117,0.00041096,14]
[407930963,1772922669312,-872.096117,0.00041096,14]
[407930964,1772922669323,-872.096117,0.00041096,14]
[407930965,1772922669334,-872.096117,0.00041096,14]
[407930966,1772922669345,-872.096117,0.00041096,14]
[407930967,1772922669356,-151.0,0.00041096,120]
[407930968,1772922669367,-872.096117,0.00041096,14]
[407930969,1772922669378,-151.0,0.00041096,120]
[407930970,1772922669391,-1136.759272,0.00041096,120]
[407930971,1772922669403,-872.096117,0.00041096,14]
[407930972,1772922669412,-151.0,0.00041096,120]
[407930973,1772922669423,-1136.759272,0.00041096,120]
[407930974,1772922669437,-872.096117,0.00041096,14]
[407930975,1772922669449,-151.0,0.00041096,120]
[407930976,1772922669460,-151.0,0.00041096,120]
[407930977,1772922669472,-1136.759272,0.00041096,120]
[407930978,1772922669483,-872.096117,0.00041096,14]
[407930979,1772922669494,-151.0,0.00041096,120]
[407930980,1772922669505,-1136.759272,0.00041096,120]
[407930981,1772922669515,-872.096117,0.00041096,14]
[407930982,1772922669525,-151.0,0.00041096,120]
[407930983,1772922669536,-1136.759272,0.00041096,120]
[407930984,1772922669546,-872.096117,0.00041096,14]
[407930985,1772922669556,-151.0,0.00041096,120]
[407930986,1772922669566,-1136.759272,0.00041096,120]
[407930987,1772922669576,-872.096117,0.00041096,14]
[407930988,1772922669587,-151.0,0.00041096,120]
[407930989,1772922669597,-1136.759272,0.00041096,120]
[407930990,1772922669608,-872.096117,0.00041096,14]
[407930991,1772922669618,-151.0,0.00041096,120]
[407930992,1772922669628,-872.096121,0.00041096,14]
[407930993,1772922669640,-151.0,0.00041096,120]
[407930994,1772922669650,-1136.759272,0.00041096,120]
[407930995,1772922669671,-228.450368,0.00041096,120]
[407930996,1772922669687,-1136.759272,0.00041096,120]
[407930997,1772922669703,-151.0,0.00041096,120]
[407930998,1772922669720,-151.0,0.00041096,120]
[407930999,1772922669737,-1136.759272,0.00041096,120]
[407931000,1772922669751,-151.0,0.00041096,120]
[407931001,1772922669769,-1136.759272,0.00041096,120]
[407931002,1772922669785,-1136.759272,0.00041096,120]
[407931003,1772922669803,-1136.759272,0.00041096,120]
[407931004,1772922669823,-1136.759272,0.00041096,120]
[407931005,1772922669840,-1136.759272,0.00041096,120]
[407931006,1772922669856,-1136.759272,0.00041096,120]
[407931007,1772922669872,-1136.759272,0.00041096,120]
[407931008,1772922669888,-1136.759272,0.00041096,120]
[407931009,1772922669903,-1136.759272,0.00041096,120]
[407931010,1772922669916,-1136.759278,0.00041096,120]
[407931011,1772922669935,-10000.0,0.00041096,30]
[407931012,1772922669946,-10000.0,0.00041096,30]
[407931013,1772922669960,-10000.0,0.00041096,30]
[407931014,1772922669974,-500.0,0.00041096,120]
[407931015,1772922669987,-500.0,0.00041096,120]
[407931016,1772922670003,-500.0,0.00041096,120]
[407931017,1772922670016,-500.0,0.00041096,120]
[407931018,1772922670031,-150.0,0.00041096,120]
[407931019,1772922670044,-150.0,0.00041096,120]
[407931020,1772922670058,-150.0,0.00041096,120]
[407931021,1772922670071,-1666.0,0.00041096,120]
[407931022,1772922670085,-2399.0,0.00041096,120]
[407931023,1772922670099,-10000.0,0.00041096,120]
[407931024,1772922670114,-2004.0,0.00041096,120]
[407931025,1772922670128,-254.64814798,0.00041096,120]
[407931026,1772922670142,-150.0,0.00041096,60]
[407931027,1772922670155,-150.0,0.00041151,60]
[407931028,1772922670168,-855.0,0.00041162,11]
[407931029,1772922670182,-610.7,0.00041168,30]
[407931030,1772922670197,-160.0,0.000412,120]
[407931031,1772922670213,-288.50199682,0.00041206,60]
[407931032,1772922670227,-25000.0,0.0004121,120]
[407931033,1772922670242,-247.04096525,0.000413,7]
[407931034,1772922670259,-151.5,0.00041338,60]
[407931035,1772922670273,-151.5,0.00041356,60]
[407931036,1772922670286,-500.0,0.00041369,2]
[407931037,1772922670302,-1206.0,0.00041369,2]
[407931038,1772922670316,-258.58423451,0.00041369,2]
[407931039,1772922670328,-751.54,0.00041369,120]
[407931040,1772922670344,-500.0,0.00041369,120]
[407931041,1772922670358,-201.10631457,0.00041369,120]
[407931042,1772922670371,-1000.0,0.00041369,2]
[407931043,1772922670385,-150.0,0.00041452,120]
[407931044,1772922670397,-255.92,0.00041452,120]
[407931045,1772922670410,-151.5,0.00041455,60]
[407931046,1772922670424,-217.54204116,0.00041468,120]
[407931047,1772922670437,-218.61207107,0.00041468,120]
[407931048,1772922670450,-200.0,0.00041499,120]
[407931049,1772922670468,-11604.28053059,0.000415,120]
[407931050,1772922670482,-214.71061469,0.00041527,7]
[407931051,1772922670496,-151.5,0.00041625,60]
[407931052,1772922670510,-500.0,0.00041643,2]
[407931053,1772922670523,-1206.0,0.00041643,2]
[407931054,1772922670536,-751.54,0.00041643,120]
[407931055,1772922670550,-500.0,0.00041643,120]
[407931056,1772922670563,-208.40106928,0.00041643,2]
[407931057,1772922670576,-10716.24,0.00041643,120]
[407931058,1772922670589,-746.0,0.00041644,120]
[407931059,1772922670603,-250.0,0.00041644,10]
[407931060,1772922670616,-250.0,0.00041644,10]
[407931061,1772922670630,-397.0,0.000418,30]
[407931062,1772922670645,-465.09210924,0.00041808,2]
[407931063,1772922670658,-151.5,0.00041837,60]
[407931064,1772922670672,-1167.22021805,0.000419,120]
[407931065,1772922670685,-3300.0,0.000419,14]
[407931066,1772922670699,-152.0,0.000419,120]
[407931067,1772922670712,-154.0,0.000419,120]
[407931068,1772922670727,-10000.0,0.000419,90]
[407931069,1772922670741,-10000.0,0.000419,100]
[407931070,1772922670755,-10000.0,0.000419,120]
[407931071,1772922670769,-500.0,0.00041917,2]
[407931072,1772922670782,-1206.0,0.00041917,2]
[407931073,1772922670796,-751.54,0.00041917,120]
[407931074,1772922670809,-500.0,0.00041917,120]
[407931075,1772922670823,-600.0,0.00041918,10]
[407931076,1772922670836,-152.0,0.00041949,13]
[407931077,1772922670849,-17458.55839771,0.00042,120]
[407931078,1772922670864,-651.0,0.00042,120]
[407931079,1772922670878,-309.0,0.00042,120]
[407931080,1772922670891,-309.0,0.00042,120]
[407931081,1772922670904,-309.0,0.00042,120]
[407931082,1772922670919,-309.0,0.00042,120]
[407931083,1772922670932,-308.0,0.00042,120]
[407931084,1772922670945,-308.0,0.00042,120]
[407931085,1772922670958,-308.0,0.00042,120]
[407931086,1772922670971,-308.0,0.00042,120]
[407931087,1772922670984,-284.0,0.00042,120]
[407931088,1772922670997,-284.0,0.00042,120]
[407931089,1772922671010,-284.0,0.00042,120]
[407931090,1772922671023,-284.0,0.00042,120]
[407931091,1772922671036,-284.0,0.00042,120]
[407931092,1772922671049,-284.0,0.00042,120]
[407931093,1772922671062,-30000.0,0.00042,60]
[407931094,1772922671075,-2388.26916772,0.00042,120]
[407931095,1772922671088,-1708.3,0.00042,120]
[407931096,1772922671101,-500.0,0.00042,120]
[407931097,1772922671115,-150.32055795,0.00042,120]
[407931098,1772922671127,-543.82168572,0.00042,120]
[407931099,1772922671140,-3000.0,0.00042,30]
[407931100,1772922671153,-3000.0,0.00042,30]
[407931101,1772922671166,-300.000001,0.00042,120]
[407931102,1772922671180,-1000.0,0.00042,120]
[407931103,1772922671196,-1000.0,0.00042,120]
[407931104,1772922671216,-1000.0,0.00042,120]
[407931105,1772922671230,-1000.0,0.00042,120]
[407931106,1772922671242,-2000.0,0.00042,120]
[407931107,1772922671256,-652.72856542,0.00042,2]
[407931108,1772922671274,-151.5,0.00042017,60]
[407931109,1772922671288,-277.50690434,0.00042027,7]
[407931110,1772922671303,-1000.0,0.000421,120]
[407931111,1772922671319,-150.0,0.00042173,120]
[407931112,1772922671332,-500.0,0.00042191,2]
[407931113,1772922671346,-1206.0,0.00042191,2]
[407931114,1772922671361,-751.54,0.00042191,120]
[407931115,1772922671374,-500.0,0.00042191,120]
[407931116,1772922671388,-10716.24,0.00042191,120]
[407931117,1772922671401,-746.0,0.00042192,120]
[407931118,1772922671416,-350.0,0.00042192,10]
[407931119,1772922671429,-359.71520702,0.00042192,10]
[407931120,1772922671443,-1000.0,0.000422,120]
[407931121,1772922671455,-2000.0,0.000422,2]
[407931122,1772922671468,-25000.0,0.0004221,120]
[407931123,1772922671480,-151.5,0.00042218,60]
[407931124,1772922671494,-290361.6257,0.0004222,7]
[407931125,1772922671506,-748.41072985,0.00042279,120]
[407931126,1772922671519,-1000.0,0.000423,120]
[407931127,1772922671532,-81412.0,0.000423,60]
[407931128,1772922671545,-1000.0,0.000424,120]
[407931129,1772922671557,-500.0,0.00042438,120]
[407931130,1772922671571,-1200.0,0.00042463,7]
[407931131,1772922671584,-500.0,0.00042465,2]
[407931132,1772922671599,-1206.0,0.00042465,2]
[407931133,1772922671612,-751.54,0.00042465,120]
[407931134,1772922671626,-500.0,0.00042465,120]
[407931135,1772922671638,-700.0,0.00042466,120]
[407931136,1772922671650,-700.0,0.00042466,120]
[407931137,1772922671664,-700.0,0.00042466,120]
[407931138,1772922671676,-700.0,0.00042466,120]
[407931139,1772922671689,-700.0,0.00042466,120]
[407931140,1772922671702,-700.0,0.00042466,120]
[407931141,1772922671714,-700.0,0.00042466,120]
[407931142,1772922671727,-700.0,0.00042466,120]
[407931143,1772922671739,-700.0,0.00042466,120]
[407931144,1772922671752,-700.0,0.00042466,120]
[407931145,1772922671765,-700.0,0.00042466,120]
[407931146,1772922671778,-700.0,0.00042466,120]
[407931147,1772922671791,-700.0,0.00042466,120]
[407931148,1772922671803,-700.0,0.00042466,120]
[407931149,1772922671815,-700.0,0.00042466,120]
[407931150,1772922671827,-700.0,0.00042466,120]
[407931151,1772922671839,-700.0,0.00042466,120]
[407931152,1772922671853,-700.0,0.00042466,120]
[407931153,1772922671865,-700.0,0.00042466,120]
[407931154,1772922671876,-628.336,0.00042466,120]
[407931155,1772922671891,-500.0,0.00042466,60]
[407931156,1772922671905,-500.0,0.00042466,60]
[407931157,1772922671918,-500.0,0.00042466,60]
[407931158,1772922671930,-500.0,0.00042466,60]
[407931159,1772922671942,-500.0,0.00042466,60]
[407931160,1772922671955,-500.0,0.00042466,60]
[407931161,1772922671968,-500.0,0.00042466,60]
[407931162,1772922671981,-500.0,0.00042466,60]
[407931163,1772922671994,-500.0,0.00042466,60]
[407931164,1772922672008,-500.0,0.00042466,60]
[407931165,1772922672020,-500.0,0.00042466,60]
[407931166,1772922672032,-500.0,0.00042466,60]
[407931167,1772922672045,-500.0,0.00042466,60]
[407931168,1772922672058,-500.0,0.00042466,60]
[407931169,1772922672072,-500.0,0.00042466,60]
[407931170,1772922672084,-500.0,0.00042466,60]
[407931171,1772922672098,-500.0,0.00042466,60]
[407931172,1772922672109,-500.0,0.00042466,60]
[407931173,1772922672122,-500.0,0.00042466,60]
[407931174,1772922672137,-500.0,0.00042466,60]
[407931175,1772922672150,-500.0,0.00042466,60]
[407931176,1772922672163,-500.0,0.00042466,60]
[407931177,1772922672176,-500.0,0.00042466,60]
[407931178,1772922672580,-500.0,0.00042466,60]
[407931179,1772922672612,-500.0,0.00042466,60]
[407931180,1772922672624,-500.0,0.00042466,60]
[407931181,1772922672633,-500.0,0.00042466,60]
[407931182,1772922672644,-500.0,0.00042466,60]
[407931183,1772922672654,-500.0,0.00042466,60]
[407931184,1772922672664,-500.0,0.00042466,60]
[407931185,1772922672674,-500.0,0.00042466,60]
[407931186,1772922672684,-500.0,0.00042466,60]
[407931187,1772922672694,-500.0,0.00042466,60]
[407931188,1772922672703,-500.0,0.00042466,60]
[407931189,1772922672714,-500.0,0.00042466,60]
[407931190,1772922672724,-500.0,0.00042466,60]
[407931191,1772922672733,-500.0,0.00042466,60]
[407931192,1772922672743,-500.0,0.00042466,60]
[407931193,1772922672754,-500.0,0.00042466,60]
[407931194,1772922672763,-500.0,0.00042466,60]
[407931195,1772922672773,-500.0,0.00042466,60]
[407931196,1772922672783,-500.0,0.00042466,60]
[407931197,1772922672793,-500.0,0.00042466,60]
[407931198,1772922672803,-500.0,0.00042466,60]
[407931199,1772922672813,-500.0,0.00042466,60]
[407931200,1772922672822,-500.0,0.00042466,60]
[407931201,1772922672833,-500.0,0.00042466,60]
[407931202,1772922672843,-500.0,0.00042466,60]
[407931203,1772922672852,-500.0,0.00042466,60]
[407931204,1772922672861,-500.0,0.00042466,60]
[407931205,1772922672871,-500.0,0.00042466,60]
[407931206,1772922672880,-500.0,0.00042466,60]
[407931207,1772922672890,-500.0,0.00042466,60]
[407931208,1772922672900,-500.0,0.00042466,60]
[407931209,1772922672912,-500.0,0.00042466,60]
[407931210,1772922672923,-500.0,0.00042466,60]
[407931211,1772922672932,-906.0,0.00042466,60]
[407931212,1772922672941,-500.0,0.00042466,120]
[407931213,1772922672950,-151.5,0.00042488,60]
[407931214,1772922672960,-1000.0,0.000425,120]
[407931215,1772922672970,-4990.79007163,0.000425,120]
[407931216,1772922672980,-2606.36519282,0.000425,120]
[407931217,1772922672991,-1617.88340864,0.000425,120]
[407931218,1772922673002,-500.0,0.00042521,120]
[407931219,1772922673012,-150.0,0.00042532,30]
[407931220,1772922673022,-237.41052331,0.00042532,30]
[407931221,1772922673031,-178.59741063,0.00042532,30]
[407931222,1772922673041,-159.52490233,0.00042532,30]
[407931223,1772922673050,-150.0,0.00042532,30]
[407931224,1772922673059,-150.0,0.00042532,30]
[407931225,1772922673067,-196.42941855,0.00042532,30]
[407931226,1772922673076,-150.0,0.00042532,30]
[407931227,1772922673085,-496.18312323,0.00042532,30]
[407931228,1772922673094,-259.43061762,0.00042532,30]
[407931229,1772922673103,-150.0,0.00042532,30]
[407931230,1772922673112,-150.0,0.00042532,30]
[407931231,1772922673121,-150.0,0.00042532,30]
[407931232,1772922673131,-150.0,0.00042532,30]
[407931233,1772922673140,-150.0,0.00042532,30]
[407931234,1772922673149,-198.44016066,0.00042532,30]
[407931235,1772922673158,-150.0,0.00042532,30]
[407931236,1772922673167,-300.0,0.0004257,2]
[407931237,1772922673176,-343.183684,0.0004257,2]
[407931238,1772922673185,-372.31395787,0.0004257,2]
[407931239,1772922673195,-300.0,0.0004257,2]
[407931240,1772922673204,-300.0,0.0004257,2]
[407931241,1772922673213,-302.12694182,0.0004257,2]
[407931242,1772922673222,-397.08221893,0.0004257,2]
[407931243,1772922673231,-425.5053517,0.0004257,2]
[407931244,1772922673240,-300.0,0.0004257,2]
[407931245,1772922673249,-519.87184079,0.0004257,2]
[407931246,1772922673259,-306.98881474,0.0004257,2]
[407931247,1772922673271,-544.26141686,0.0004257,2]
[407931248,1772922673279,-300.0,0.0004257,2]
[407931249,1772922673288,-300.0,0.0004257,2]
[407931250,1772922673298,-415.85804326,0.0004257,2]
[407931251,1772922673307,-300.0,0.0004257,2]
[407931252,1772922673316,-400.35113949,0.0004257,2]
[407931253,1772922673325,-300.0,0.0004257,2]
[407931254,1772922673336,-1084.72444423,0.0004257,2]
[407931255,1772922673346,-321.60632278,0.0004257,2]
[407931256,1772922673355,-464.83458641,0.0004257,2]
[407931257,1772922673364,-454.89839179,0.0004257,2]
[407931258,1772922673374,-300.0,0.0004257,2]
[407931259,1772922673383,-300.0,0.0004257,2]
[407931260,1772922673392,-464.05732503,0.0004257,2]
[407931261,1772922673401,-465.78092415,0.0004257,2]
[407931262,1772922673410,-300.0,0.0004257,2]
[407931263,1772922673419,-300.0,0.0004257,2]
[407931264,1772922673428,-1048.99623049,0.0004257,2]
[407931265,1772922673437,-306.76170033,0.0004257,2]
[407931266,1772922673446,-856.54643745,0.0004257,2]
[407931267,1772922673456,-594.28499792,0.0004257,2]
[407931268,1772922673465,-308.03022305,0.0004257,2]
[407931269,1772922673473,-300.0,0.0004257,2]
[407931270,1772922673482,-300.0,0.0004257,2]
[407931271,1772922673491,-459.60835984,0.0004257,2]
[407931272,1772922673500,-300.0,0.0004257,2]
[407931273,1772922673509,-300.0,0.0004257,2]
[407931274,1772922673518,-372.31395783,0.0004257,2]
[407931275,1772922673528,-300.0,0.0004257,2]
[407931276,1772922673537,-348.59657436,0.0004257,2]
[407931277,1772922673546,-302.12694182,0.0004257,2]
[407931278,1772922673557,-300.0,0.0004257,2]
[407931279,1772922673566,-519.87184079,0.0004257,2]
[407931280,1772922673575,-306.98881473,0.0004257,2]
[407931281,1772922673584,-300.0,0.0004257,2]
[407931282,1772922673595,-300.0,0.0004257,2]
[407931283,1772922673605,-415.85804326,0.0004257,2]
[407931284,1772922673614,-300.0,0.0004257,2]
[407931285,1772922673624,-300.0,0.0004257,2]
[407931286,1772922673638,-1084.72444425,0.0004257,2]
[407931287,1772922673648,-300.0,0.0004257,2]
[407931288,1772922673658,-300.0,0.0004257,2]
[407931289,1772922673669,-339.41639484,0.0004257,2]
[407931290,1772922673678,-300.0,0.0004257,2]
[407931291,1772922673689,-1048.99623049,0.0004257,2]
[407931292,1772922673699,-306.76170033,0.0004257,2]
[407931293,1772922673709,-856.54643745,0.0004257,2]
[407931294,1772922673719,-308.03022305,0.0004257,2]
[407931295,1772922673729,-300.0,0.0004257,2]
[407931296,1772922673738,-300.0,0.0004257,2]
[407931297,1772922673747,-459.60835984,0.0004257,2]
[407931298,1772922673757,-300.0,0.0004257,2]
[407931299,1772922673766,-300.0,0.0004257,2]
[407931300,1772922673775,-372.31395784,0.0004257,2]
[407931301,1772922673785,-300.0,0.0004257,2]
[407931302,1772922673794,-302.12694182,0.0004257,2]
[407931303,1772922673803,-300.0,0.0004257,2]
[407931304,1772922673813,-519.87184079,0.0004257,2]
[407931305,1772922673826,-306.98881473,0.0004257,2]
[407931306,1772922673835,-300.0,0.0004257,2]
[407931307,1772922673846,-300.0,0.0004257,2]
[407931308,1772922673855,-300.0,0.0004257,2]
[407931309,1772922673865,-300.0,0.0004257,2]
[407931310,1772922673874,-1084.72444424,0.0004257,2]
[407931311,1772922673883,-300.0,0.0004257,2]
[407931312,1772922673893,-300.0,0.0004257,2]
[407931313,1772922673903,-1048.99623049,0.0004257,2]
[407931314,1772922673912,-306.76170033,0.0004257,2]
[407931315,1772922673921,-856.54643745,0.0004257,2]
[407931316,1772922673931,-308.03022305,0.0004257,2]
[407931317,1772922673940,-300.0,0.0004257,2]
[407931318,1772922673950,-300.0,0.0004257,2]
[407931319,1772922673959,-459.60835984,0.0004257,2]
[407931320,1772922673969,-300.0,0.0004257,2]
[407931321,1772922673979,-300.0,0.0004257,2]
[407931322,1772922673989,-372.31395787,0.0004257,2]
[407931323,1772922673999,-300.0,0.0004257,2]
[407931324,1772922674008,-302.12694183,0.0004257,2]
[407931325,1772922674021,-300.0,0.0004257,2]
[407931326,1772922674031,-519.87184079,0.0004257,2]
[407931327,1772922674040,-306.98881473,0.0004257,2]
[407931328,1772922674049,-300.0,0.0004257,2]
[407931329,1772922674059,-300.0,0.0004257,2]
[407931330,1772922674068,-415.85928885,0.0004257,2]
[407931331,1772922674078,-300.0,0.0004257,2]
[407931332,1772922674087,-300.0,0.0004257,2]
[407931333,1772922674097,-1084.72444423,0.0004257,2]
[407931334,1772922674106,-300.0,0.0004257,2]
[407931335,1772922674115,-300.0,0.0004257,2]
[407931336,1772922674124,-1048.99623049,0.0004257,2]
[407931337,1772922674133,-306.76170033,0.0004257,2]
[407931338,1772922674143,-856.54643745,0.0004257,2]
[407931339,1772922674152,-1869.13266145,0.0004257,2]
[407931340,1772922674161,-308.03022305,0.0004257,2]
[407931341,1772922674171,-534.92896766,0.0004257,2]
[407931342,1772922674180,-300.0,0.0004257,2]
[407931343,1772922674190,-459.60835984,0.0004257,2]
[407931344,1772922674199,-300.0,0.0004257,2]
[407931345,1772922674208,-300.0,0.0004257,2]
[407931346,1772922674222,-372.31395786,0.0004257,2]
[407931347,1772922674231,-300.0,0.0004257,2]
[407931348,1772922674240,-302.12694181,0.0004257,2]
[407931349,1772922674250,-300.0,0.0004257,2]
[407931350,1772922674261,-519.87184079,0.0004257,2]
[407931351,1772922674272,-306.98881473,0.0004257,2]
[407931352,1772922674281,-300.0,0.0004257,2]
[407931353,1772922674291,-300.0,0.0004257,2]
[407931354,1772922674301,-415.85804325,0.0004257,2]
[407931355,1772922674310,-300.0,0.0004257,2]
[407931356,1772922674319,-324.64563407,0.0004257,2]
[407931357,1772922674329,-300.0,0.0004257,2]
[407931358,1772922674340,-1084.72444425,0.0004257,2]
[407931359,1772922674350,-300.0,0.0004257,2]
[407931360,1772922674360,-300.0,0.0004257,2]
[407931361,1772922674370,-443.59091085,0.0004257,2]
[407931362,1772922674380,-300.0,0.0004257,2]
[407931363,1772922674389,-300.0,0.0004257,2]
[407931364,1772922674398,-1048.99623049,0.0004257,2]
[407931365,1772922674408,-306.76170033,0.0004257,2]
[407931366,1772922674420,-856.54643745,0.0004257,2]
[407931367,1772922674429,-308.03022305,0.0004257,2]
[407931368,1772922674439,-300.0,0.0004257,2]
[407931369,1772922674448,-459.60835984,0.0004257,2]
[407931370,1772922674458,-300.0,0.0004257,2]
[407931371,1772922674467,-301.58887327,0.0004257,2]
[407931372,1772922674477,-372.31395783,0.0004257,2]
[407931373,1772922674486,-300.0,0.0004257,2]
[407931374,1772922674495,-302.12694182,0.0004257,2]
[407931375,1772922674504,-300.0,0.0004257,2]
[407931376,1772922674514,-519.87184079,0.0004257,2]
[407931377,1772922674523,-306.98881473,0.0004257,2]
[407931378,1772922674533,-300.0,0.0004257,2]
[407931379,1772922674542,-300.00000001,0.0004257,2]
[407931380,1772922674551,-415.85804327,0.0004257,2]
[407931381,1772922674560,-300.0,0.0004257,2]
[407931382,1772922674569,-300.0,0.0004257,2]
[407931383,1772922674579,-1084.72444423,0.0004257,2]
[407931384,1772922674588,-300.0,0.0004257,2]
[407931385,1772922674598,-300.00000001,0.0004257,2]
[407931386,1772922674607,-607.76644786,0.0004257,2]
[407931387,1772922674617,-300.0,0.0004257,2]
[407931388,1772922674626,-1048.99623049,0.0004257,2]
[407931389,1772922674635,-306.76170033,0.0004257,2]
[407931390,1772922674644,-856.54643745,0.0004257,2]
[407931391,1772922674654,-308.03022305,0.0004257,2]
[407931392,1772922674663,-300.0,0.0004257,2]
[407931393,1772922674672,-459.60835984,0.0004257,2]
[407931394,1772922674682,-300.0,0.0004257,2]
[407931395,1772922674691,-372.31395787,0.0004257,2]
[407931396,1772922674700,-300.0,0.0004257,2]
[407931397,1772922674710,-302.12694182,0.0004257,2]
[407931398,1772922674719,-519.87184079,0.0004257,2]
[407931399,1772922674729,-306.98881473,0.0004257,2]
[407931400,1772922674738,-300.0,0.0004257,2]
[407931401,1772922674748,-300.0,0.0004257,2]
[407931402,1772922674758,-534.03155754,0.0004257,2]
[407931403,1772922674767,-300.0,0.0004257,2]